bitfinex-derivatives/quotes_ETHF0:USTF0_20210102
["timestamp","ask_amount","ask_price","bid_price","bid_amount"]
[1609580126671,1.96013539,729.43,729.23,6.01438]
[1609580126871,2.7545,729.42,729.23,6.01438]
[1609580127575,2.7545,729.42,729.24,2.706]
[1609580128474,6.01438,729.32,729.24,2.706]
[1609580128673,6.01438,729.32,729.1,19.43241134]
[1609580129474,96.86601994,729.84,729.1,19.43241134]
[1609580129675,13.74553233,729.86,729.19,86.7629]
[1609580130378,13.74553233,729.86,729.44,6.01438]
[1609580130577,13.74553233,729.86,729.52,15.8204]
[1609580130978,1.96573233,729.86,729.41,4.718]
[1609580131178,89.8032,729.78,729.41,4.718]
[1609580131977,1.96573233,729.86,729.41,4.718]
[1609580132378,6.01438,729.62,729.41,4.718]
[1609580133579,2.7043,729.61,729.41,4.718]
[1609580134379,2.7043,729.61,729.49,6.01438]
[1609580134980,6.01438,729.69,729.49,6.01438]
[1609580136083,2.7628,729.68,729.5,2.7788]
[1609580136480,6.01438,729.51,729.5,2.7788]
[1609580136680,8.75608,729.51,729.5,2.7788]
[1609580137182,8.19848,729.51,729.49,6.01438]
[1609580137381,5.45678,729.51,729.49,6.01438]
[1609580138282,8.20208,729.51,729.49,8.73018]
[1609580138782,5.45678,729.51,729.49,6.01438]
[1609580139282,4.753,729.87,729.49,6.01438]
[1609580139482,1.96775334,730.01,729.51,13.5161]
[1609580139683,1.96775334,730.01,729.49,6.01438]
[1609580139883,1.96750705,730.03,729.58,79.0424]
[1609580140082,1.96750705,730.03,729.58,82.4384]
[1609580140383,6.01438,729.89,729.81,6.01438]
[1609580140584,6.01438,729.89,729.82,2.7667]
[1609580141582,6.01438,729.89,729.81,6.01438]
[1609580141783,1.96927417,730.16,729.81,6.01438]
[1609580142183,1.96927417,730.16,729.82,12.488]
[1609580142385,1.96927417,730.16,729.97,6.01438]
[1609580142585,1.96895825,730.18,729.98,2.7485]
[1609580143586,6.01438,730.27,729.98,2.7485]
[1609580143785,6.01438,730.27,729.97,10.78338]
[1609580144387,6.01438,730.27,730.26,6.01438]
[1609580144595,6.01438,730.27,730.2,3.538]
[1609580145189,2.7614,730.26,730.2,3.538]
[1609580145589,6.01438,730.27,729.97,4.769]
[1609580145791,6.01438,730.27,729.97,101.2689]
[1609580146491,6.01438,730.17,729.98,2.7537]
[1609580148497,4.00325283,730.26,730.05,6.01438]
[1609580149395,1.25225283,730.26,730.05,6.01438]
[1609580150002,1.97109965,730.32,730.05,6.01438]
[1609580150501,6.01438,730.31,730.19,6.01438]
[1609580150700,2.7747,730.3,730.2,2.7172]
[1609580152604,2.7747,730.3,730.27,6.01438]
[1609580154102,4.465,730.46,730.27,6.01438]
[1609580154302,1.97218367,730.5,730.27,6.01438]
[1609580154503,6.01438,730.4,730.27,6.01438]
[1609580155103,2.7595,730.39,730.28,2.7558]
[1609580156604,6.01438,730.4,730.27,6.01438]
[1609580157604,2.7436,730.39,730.28,2.7161]
[1609580158606,6.01438,730.4,730.27,6.01438]
[1609580164510,6.01438,730.28,730.27,6.01438]
[1609580166118,1.97492793,730.47,730.27,6.01438]
[1609580166719,6.01438,730.29,730.27,6.01438]
[1609580167721,1.97492793,730.47,730.27,6.01438]
[1609580168622,1.97492793,730.47,730.43,6.01438]
[1609580170126,1.97568001,730.57,730.43,6.01438]
[1609580170628,6.01438,730.55,730.43,6.01438]
[1609580180848,1.25169293,730.54,730.43,6.01438]
[1609580182850,6.01438,730.45,730.43,6.01438]
[1609580191264,1.97759126,730.62,730.43,20.09388]
[1609580191664,2.7149,730.61,730.43,6.01438]
[1609580191864,1.97759126,730.62,730.54,110.4117]
[1609580192067,1.97759126,730.62,730.48,3.292]
[1609580192470,1.97759126,730.62,730.52,81.5223]
[1609580192870,1.97759126,730.62,730.61,6.01438]
[1609580194769,1.69819126,730.62,730.61,6.01438]
[1609580194970,1.29079126,730.62,730.61,114.30628]
[1609580195373,1.9341796,730.69,730.61,114.30628]
[1609580195675,6.01438,730.92,730.61,114.30628]
[1609580196976,6.01438,730.92,730.88,6.01438]
[1609580198981,3.30192077,731.09,730.88,6.01438]
[1609580199179,3.30192077,731.09,730.96,84.1339]
[1609580199780,3.30266114,731.12,730.96,84.1339]
[1609580200781,4.16586589,731.08,730.96,84.1339]
[1609580200980,4.16586589,731.08,731.0,6.01438]
[1609580201881,3.30343963,731.15,731.0,6.01438]
[1609580201882,3.30328369,731.16,731.0,6.01438]
[1609580202886,1.23476864,731.16,731.15,6.01438]
[1609580203083,1.23476864,731.16,731.15,90.99238]
[1609580205287,5.79560446,731.48,731.15,90.99238]
[1609580206090,5.79560446,731.48,731.16,2.7552]
[1609580206590,24.21142053,731.77,731.16,2.7552]
[1609580206591,8.18493936,731.47,731.16,2.7552]
[1609580206990,8.18493936,731.47,731.46,6.01438]
[1609580207392,5.80416796,731.67,731.51,88.1383]
[1609580208697,5.80415377,731.68,731.51,88.1383]
[1609580208894,5.80415377,731.68,731.67,6.01438]
[1609580209896,5.80415377,731.68,731.51,88.1383]
[1609580210297,16.19502772,731.83,731.51,88.1383]
[1609580210298,1.97683874,731.66,731.51,88.1383]
[1609580210898,1.97683874,731.66,731.63,6.01438]
[1609580211498,5.80397001,731.69,731.63,6.01438]
[1609580212500,5.80242647,731.65,731.63,6.01438]
[1609580213604,5.80312194,731.66,731.63,6.01438]
[1609580214506,8.28489288,731.7,731.63,6.01438]
[1609580214903,6.01438,731.64,731.63,6.01438]
[1609580216706,6.01438,731.64,731.51,88.1383]
[1609580216907,6.01438,731.52,731.51,88.1383]
[1609580218808,6.01438,731.52,731.42,3.38]
[1609580219009,6.01438,731.43,731.41,6.01438]
[1609580219207,6.01438,731.43,731.2,82.7309]
[1609580220008,2.01493739,731.51,731.2,82.7309]
[1609580221010,6.01438,731.36,731.25,6.01438]
[1609580221209,2.7195,731.35,731.2,82.7309]
[1609580221811,2.7195,731.35,731.21,2.7255]
[1609580223009,2.7195,731.35,731.27,6.01438]
[1609580223510,6.01438,731.37,731.27,6.01438]
[1609580223716,2.01428901,731.42,731.27,6.01438]
[1609580223911,3.31111759,731.52,731.27,6.01438]
[1609580224312,3.31111759,731.52,731.28,2.7734]
[1609580224512,2.7635,731.51,731.28,2.7734]
[1609580225010,6.01438,731.29,731.28,2.7734]
[1609580225210,8.71408,731.29,731.28,2.7734]
[1609580226110,8.71408,731.29,731.27,6.01438]
[1609580226511,6.01438,731.29,731.27,6.01438]
[1609580227513,2.7119,731.28,731.27,6.01438]
[1609580227914,6.01438,731.29,731.2,82.7309]
[1609580228914,2.7228,731.28,731.2,82.7309]
[1609580229114,6.01438,731.21,731.04,6.01438]
[1609580231017,6.01438,731.13,731.04,6.01438]
[1609580231417,6.01438,731.13,731.05,2.7523]
[1609580231618,6.01438,731.13,731.05,6.3343]
[1609580232320,2.7056,731.12,731.05,6.3343]
[1609580233523,6.01438,731.13,731.05,3.582]
[1609580234426,2.7379,731.12,731.06,2.7398]
[1609580235225,6.01438,731.13,731.05,3.582]
[1609580236427,2.6476817,731.33,731.05,3.582]
[1609580236626,2.6476817,731.33,731.04,6.01438]
[1609580237026,6.01438,731.2,731.04,6.01438]
[1609580238731,6.01438,731.2,731.09,106.5125]
[1609580238933,2.7053,731.19,731.1,2.7257]
[1609580239131,2.7053,731.19,731.15,6.01438]
[1609580241036,6.01438,731.16,731.15,6.01438]
[1609580241233,8.74938,731.16,731.15,6.01438]
[1609580241533,2.735,731.16,731.15,6.01438]
[1609580241731,2.735,731.16,731.15,92.97538]
[1609580242535,2.6466697,731.34,731.15,92.97538]
[1609580242934,2.64585333,731.33,731.15,92.97538]
[1609580243135,2.64585333,731.33,731.32,6.01438]
[1609580243333,2.64585333,731.33,731.32,9.54538]
[1609580243534,2.7642,731.33,731.32,9.54538]
[1609580245034,2.64774026,731.52,731.32,9.54538]
[1609580245437,2.64774026,731.52,731.32,25.54768]
[1609580245649,4.595,731.83,731.32,25.54768]
[1609580245650,2.64751212,731.54,731.32,25.54768]
[1609580246039,2.7314,731.53,731.32,25.54768]
[1609580246241,2.64751212,731.54,731.32,25.54768]
[1609580246539,1.99761073,731.51,731.32,25.54768]
[1609580247040,1.99761073,731.51,731.32,19.5333]
[1609580247240,1.99761073,731.51,731.5,6.01438]
[1609580247440,1.99761073,731.51,731.5,8.75768]
[1609580247641,2.64737969,731.56,731.5,6.01438]
[1609580248540,2.64737969,731.56,731.32,19.5333]
[1609580248741,2.7513,731.55,731.33,2.7409]
[1609580249140,8.66175969,731.56,731.37,6.01438]
[1609580250142,2.64633471,731.46,731.38,2.753]
[1609580250340,2.64633471,731.46,731.37,6.01438]
[1609580251241,6.01438,731.41,731.37,6.01438]
[1609580251442,6.01438,731.41,731.38,2.7525]
[1609580251642,6.01438,731.41,731.39,2.7435]
[1609580252443,2.7732,731.45,731.39,2.7435]
[1609580252943,1.99477591,731.4,731.39,2.7435]
[1609580254347,2.05835516,731.44,731.39,2.7435]
[1609580256047,2.05835516,731.44,731.37,6.01438]
[1609580256949,2.05835516,731.44,731.32,3.531]
[1609580257146,6.01438,731.33,731.26,6.01438]
[1609580258450,1.98436645,731.41,731.26,6.01438]
[1609580259151,1.98436645,731.41,731.4,6.01438]
[1609580259552,2.64582194,731.48,731.4,6.01438]
[1609580260852,19.32626158,731.63,731.4,6.01438]
[1609580260853,1.98549568,731.49,731.4,6.01438]
[1609580261252,1.98549568,731.49,731.48,6.01438]
[1609580262464,2.64732757,731.56,731.48,6.01438]
[1609580263357,1.98533982,731.49,731.48,6.01438]
[1609580264360,2.64732757,731.56,731.48,6.01438]
[1609580264961,2.64732757,731.56,731.29,107.5878]
[1609580265259,2.64732757,731.56,731.37,6.01438]
[1609580265660,1.98513887,731.49,731.37,6.01438]
[1609580266962,1.98450003,731.44,731.37,6.01438]
[1609580267563,1.99689466,731.43,731.37,6.01438]
[1609580268467,1.98481157,731.45,731.37,6.01438]
[1609580269270,4.64411041,731.52,731.37,6.01438]
[1609580269271,1.98480439,731.47,731.37,6.01438]
[1609580270970,1.98480439,731.47,731.26,4.917]
[1609580271169,1.98480439,731.47,731.19,96.2463]
[1609580271570,1.98480439,731.47,731.09,18.91]
[1609580271571,1.98480439,731.47,731.46,6.01438]
[1609580271772,1.98480439,731.47,731.46,89.16548]
[1609580272270,8.66090766,731.55,731.46,89.16548]
[1609580272271,1.98502823,731.48,731.46,89.16548]
[1609580275170,1.93325589,731.55,731.46,93.59348]
[1609580275473,1.93325589,731.55,731.54,6.01438]
[1609580277973,1.91645877,731.8,731.54,6.01438]
[1609580278773,3.31192865,731.79,731.54,6.01438]
[1609580279575,4.532,731.81,731.46,87.5791]
[1609580279576,6.01438,731.68,731.62,6.01438]
[1609580280276,1.91380465,731.67,731.62,6.01438]
[1609580281175,6.01438,731.68,731.62,6.01438]
[1609580281374,3.30882772,731.77,731.62,6.01438]
[1609580281574,6.01438,731.63,731.62,6.01438]
[1609580282282,6.01438,731.63,731.46,87.5791]
[1609580282480,21.01438,731.63,731.46,4.428]
[1609580282679,21.01438,731.63,731.27,3.583]
[1609580282879,21.01438,731.63,730.92,15.0]
[1609580283080,132.97088,731.63,731.01,81.3538]
[1609580283280,134.88073608,731.63,731.01,81.3538]
[1609580283680,128.86635608,731.63,731.1,6.01438]
[1609580283881,128.86635608,731.63,731.1,9.03738]
[1609580284283,3.30393445,731.6,731.1,9.03738]
[1609580284481,15.0,731.59,731.1,9.03738]
[1609580285186,15.0,731.5,731.1,9.03738]
[1609580285591,6.01438,731.11,731.1,9.03738]
[1609580287887,3.29873823,731.45,731.1,9.03738]
[1609580288687,3.29820999,731.43,731.1,9.03738]
[1609580289490,1.90659707,731.48,731.1,9.03738]
[1609580289690,6.01438,731.19,731.1,9.03738]
[1609580291590,1.90659707,731.48,731.1,9.03738]
[1609580291789,6.01438,731.3,731.18,6.01438]
[1609580294289,6.01438,731.3,731.19,15.4731]
[1609580294490,4.576,731.49,731.18,6.01438]
[1609580294689,3.30015799,731.57,731.28,84.6387]
[1609580295091,1.90682553,731.48,731.28,84.6387]
[1609580295692,6.01438,731.29,731.28,84.6387]
[1609580295890,1.90682553,731.48,731.28,84.6387]
[1609580297693,6.01438,731.41,731.37,6.01438]
[1609580297892,1.90682553,731.48,731.37,6.01438]
[1609580302708,9.31511337,731.6,731.37,6.01438]
[1609580303500,1.90645501,731.59,731.37,6.01438]
[1609580303800,1.90645501,731.59,731.52,6.01438]
[1609580310210,1.90645501,731.59,731.28,84.6387]
[1609580311411,1.90645501,731.59,731.25,3.91]
[1609580311611,1.90645501,731.59,731.1,3.023]
[1609580311814,6.01438,731.2,731.06,106.3395]
[1609580312011,6.01438,731.2,731.03,6.01438]
[1609580312411,87.3839,731.4,731.03,6.01438]
[1609580313416,15.0,731.59,731.03,6.01438]
[1609580313715,2.63660873,731.52,731.03,6.01438]
[1609580314114,2.63660873,731.52,731.31,101.7289]
[1609580314715,2.63668744,731.53,731.31,101.7289]
[1609580315615,15.0,731.59,731.31,101.7289]
[1609580315916,6.01438,731.35,731.31,101.7289]
[1609580316118,6.01438,731.35,731.24,6.01438]
[1609580317217,6.01438,731.35,731.17,95.4897]
[1609580317918,2.6361731,731.51,731.17,95.4897]
[1609580319219,2.63627688,731.52,731.17,95.4897]
[1609580319920,6.01438,731.18,731.17,95.4897]
[1609580321125,2.63627688,731.52,731.17,95.4897]
[1609580322025,2.63627688,731.52,731.25,6.01438]
[1609580322225,2.63557892,731.51,731.25,6.01438]
[1609580323329,2.63589615,731.53,731.25,6.01438]
[1609580323729,2.7233,731.52,731.26,2.7131]
[1609580324130,6.01438,731.27,731.26,2.7131]
[1609580324334,6.01438,731.27,731.25,6.01438]
[1609580324531,8.70848,731.27,731.25,6.01438]
[1609580324731,2.6941,731.27,731.25,6.01438]
[1609580324929,2.6941,731.27,731.26,15.0]
[1609580325130,1.9622,731.27,731.26,117.6597]
[1609580325330,1.4376,731.27,731.26,117.6597]
[1609580325831,2.63589615,731.53,731.26,117.6597]
[1609580326032,2.63589615,731.53,731.52,6.01438]
[1609580326933,5.36839615,731.53,731.52,6.01438]
[1609580327133,2.63589615,731.53,731.52,6.01438]
[1609580327733,2.63589615,731.53,731.52,111.02338]
[1609580328235,5.37079615,731.53,731.52,111.02338]
[1609580329338,5.37079615,731.53,731.52,105.009]
[1609580330039,11.38517615,731.53,731.52,105.009]
[1609580331042,11.38517615,731.53,731.52,107.7309]
[1609580331343,8.74928,731.53,731.52,107.7309]
[1609580333146,2.7349,731.53,731.52,107.7309]
[1609580335850,1.97626552,731.78,731.52,105.009]
[1609580336252,1.97600572,731.76,731.68,6.01438]
[1609580336453,1.97600572,731.76,731.69,13.9581]
[1609580338256,6.01438,731.7,731.69,13.9581]
[1609580339455,8.74678,731.7,731.69,13.9581]
[1609580339656,6.01438,731.7,731.69,13.9581]
[1609580340758,8.75528,731.7,731.69,13.9581]
[1609580342163,2.7409,731.7,731.69,13.9581]
[1609580342662,6.01438,731.7,731.69,13.9581]
[1609580342864,1.97548212,731.77,731.69,13.9581]
[1609580343265,1.97548212,731.77,731.7,2.7015]
[1609580343666,2.7453,731.76,731.7,2.7015]
[1609580344667,6.01438,731.71,731.7,2.7015]
[1609580344865,6.01438,731.71,731.69,13.9581]
[1609580345866,8.75578,731.71,731.69,16.7277]
[1609580346669,4.35222584,731.7,731.69,16.7277]
[1609580347571,1.72607448,731.7,731.69,16.7277]
[1609580347969,1.72607448,731.7,731.69,13.9581]
[1609580349169,4.47357448,731.7,731.69,13.9581]
[1609580350073,6.44734077,731.7,731.69,13.9581]
[1609580350271,6.44734077,731.7,731.69,16.684]
[1609580350471,1.72607448,731.7,731.69,13.9581]
[1609580351174,6.01438,731.7,731.69,13.9581]
[1609580351573,8.72518,731.7,731.69,16.7017]
[1609580356181,8.72518,731.7,731.69,13.9581]
[1609580360489,6.01438,731.7,731.69,13.9581]
[1609580361490,8.73918,731.7,731.69,13.9581]
[1609580362494,6.01438,731.7,731.69,13.9581]
[1609580363992,7.76423532,731.7,731.69,13.9581]
[1609580364693,6.01438,731.7,731.69,13.9581]
[1609580366095,8.77608,731.7,731.69,13.9581]
[1609580366293,6.01438,731.7,731.69,13.9581]
[1609580367296,8.71868,731.7,731.69,13.9581]
[1609580368297,10.46887468,731.7,731.69,13.9581]
[1609580368697,7.76457468,731.7,731.69,13.9581]
[1609580369599,10.50107468,731.7,731.69,13.9581]
[1609580370100,7.76457468,731.7,731.69,13.9581]
[1609580370299,7.76457468,731.7,731.47,6.01438]
[1609580370700,6.01438,731.7,731.47,6.01438]
[1609580371499,6.01438,731.5,731.47,6.01438]
[1609580371701,2.7556,731.49,731.48,2.7032]
[1609580371901,6.01438,731.5,731.47,6.01438]
[1609580372099,6.01438,731.5,731.33,77.342]
[1609580373001,2.7412,731.49,731.33,77.342]
[1609580373402,2.7412,731.49,731.37,6.01438]
[1609580374302,1.97207735,731.71,731.37,6.01438]
[1609580374703,1.97207735,731.71,731.46,78.1119]
[1609580374902,1.97207735,731.71,731.47,2.706]
[1609580375202,2.7095,731.7,731.47,2.706]
[1609580375703,2.7095,731.7,731.51,6.01438]
[1609580376807,1.89580823,731.69,731.51,6.01438]
[1609580377604,6.01438,731.52,731.51,6.01438]
[1609580377807,8.73988,731.52,731.51,6.01438]
[1609580378305,6.01438,731.52,731.51,6.01438]
[1609580379307,8.74508,731.52,731.51,6.01438]
[1609580381608,6.01438,731.52,731.51,6.01438]
[1609580382109,1.97227488,731.72,731.51,6.01438]
[1609580382310,1.97232018,731.73,731.71,101.4458]
[1609580383311,1.97232018,731.73,731.71,104.2176]
[1609580383511,1.97232018,731.73,731.71,101.4458]
[1609580383716,2.62976024,731.8,731.71,101.4458]
[1609580383717,1.9712237,731.78,731.71,101.4458]
[1609580383911,6.01438,731.72,731.71,101.4458]
[1609580384414,8.74148,731.72,731.71,104.2091]
[1609580385617,6.01438,731.72,731.71,101.4458]
[1609580386618,8.72098,731.72,731.71,104.1791]
[1609580387220,2.7066,731.72,731.71,104.1791]
[1609580387419,1.97156435,731.85,731.71,101.4458]
[1609580387825,1.97150214,731.84,731.71,101.4458]
[1609580388023,6.01438,731.72,731.71,101.4458]
[1609580390523,1.97153889,731.86,731.71,101.4458]
[1609580390725,1.97153889,731.86,731.85,109.21]
[1609580390925,4.366,731.9,731.85,109.21]
[1609580392028,4.366,731.9,731.89,6.01438]
[1609580393631,1.97247493,732.0,731.89,6.01438]
[1609580394032,1.97247493,732.0,731.99,6.01438]
[1609580394436,6.01438,732.1,731.99,6.01438]
[1609580394437,1.97292689,732.03,731.99,6.01438]
[1609580395637,1.97315472,732.05,731.99,6.01438]
[1609580395836,1.90809659,732.09,731.99,6.01438]
[1609580396037,1.90809659,732.09,732.06,100.206]
[1609580396736,2.63087296,732.12,732.06,100.206]
[1609580397739,2.63029224,732.11,731.65,15.0]
[1609580397937,5.68229224,732.11,731.94,104.1335]
[1609580398136,6.01438,731.95,731.94,104.1335]
[1609580398338,10.65138,731.95,731.94,104.1335]
[1609580399737,10.65138,731.95,731.31,15.0]
[1609580399938,10.65138,731.95,731.51,82.1808]
[1609580400138,10.65138,731.95,731.73,6.01438]
[1609580400340,14.52879138,731.95,731.73,6.01438]
[1609580401442,1.97084417,731.88,731.78,96.3593]
[1609580404042,1.97084417,731.88,731.78,102.37368]
[1609580404444,1.97116834,731.9,731.78,102.37368]
[1609580406243,6.01438,731.87,731.78,102.37368]
[1609580410547,6.61093044,731.95,731.78,96.3593]
[1609580412053,4.637,731.95,731.78,96.3593]
[1609580412251,6.01438,731.87,731.83,6.01438]
[1609580417257,4.604,731.93,731.83,6.01438]
[1609580417457,1.97304438,731.98,731.83,6.01438]
[1609580418659,6.01438,731.84,731.83,6.01438]
[1609580420860,3.718,731.94,731.83,6.01438]
[1609580422562,6.01438,731.84,731.83,6.01438]
[1609580428270,6.01438,731.84,731.83,113.49728]
[1609580430171,8.77888,731.84,731.83,113.49728]
[1609580430372,6.01438,731.84,731.83,113.49728]
[1609580431273,8.78288,731.84,731.83,113.49728]
[1609580434381,2.7685,731.84,731.83,113.49728]
[1609580434581,3.718,731.94,731.83,113.49728]
[1609580434781,6.01438,731.98,731.83,113.49728]
[1609580439585,1.97311478,732.06,731.83,113.49728]
[1609580440886,6.01438,732.01,731.93,6.01438]
[1609580441287,6.01438,732.01,732.0,81.2929]
[1609580446790,6.01438,732.01,731.93,6.01438]
[1609580447189,6.01438,732.01,731.73,90.612]
[1609580448692,6.01438,732.01,731.46,3.282]
[1609580448890,6.01438,732.01,731.34,29.99127947]
[1609580449090,6.01438,731.83,731.71,88.8242]
[1609580449291,6.01438,731.83,731.7,6.01438]
[1609580449492,6.01438,731.83,731.82,95.9567]
[1609580454195,6.01438,731.83,731.7,6.01438]
[1609580454396,6.01438,731.83,731.71,113.3908]
[1609580455096,6.01438,731.83,731.78,6.01438]
[1609580455499,6.01438,731.83,731.82,108.137]
[1609580458101,4.601,731.93,731.78,6.01438]
[1609580458300,1.9725741,732.03,731.78,6.01438]
[1609580458500,1.9725741,732.03,731.87,97.8623]
[1609580459001,6.01438,731.93,731.78,6.01438]
[1609580459401,6.01438,731.93,731.9,79.3674]
[1609580481636,4.283,731.94,731.9,79.3674]
[1609580482135,6.01438,731.91,731.9,79.3674]
[1609580482337,6.01438,731.91,731.78,6.01438]
[1609580484136,6.01438,731.79,731.78,6.01438]
[1609580484938,6.01438,731.79,731.78,109.77598]
[1609580486039,6.01438,731.79,731.78,6.01438]
[1609580487740,6.01438,731.79,731.78,19.09848]
[1609580500356,6.01438,731.79,731.78,6.01438]
[1609580500757,6.01438,731.79,731.57,6.01438]
[1609580500956,6.01438,731.79,731.52,3.377]
[1609580501156,6.01438,731.79,731.49,112.043]
[1609580501357,6.01438,731.79,731.3,3.052]
[1609580501556,6.01438,731.79,731.47,96.4197]
[1609580501762,6.01438,731.79,731.41,4.486]
[1609580501964,6.01438,731.79,731.44,109.6606]
[1609580502664,6.01438,731.57,731.45,6.01438]
[1609580503463,6.01438,731.57,731.56,87.8669]
[1609580507670,3.553,731.77,731.56,87.8669]
[1609580508775,6.01438,731.57,731.56,87.8669]
[1609580509374,3.824,731.72,731.56,87.8669]
[1609580511776,6.01438,731.57,731.56,87.8669]
[1609580514182,3.824,731.72,731.56,87.8669]
[1609580514379,1.97114161,731.89,731.56,87.8669]
[1609580514981,1.97125138,731.9,731.56,87.8669]
[1609580515783,6.01438,731.78,731.72,6.01438]
[1609580516384,6.01438,731.78,731.77,99.7996]
[1609580520988,1.9216547,731.92,731.77,99.7996]
[1609580521890,6.01438,731.9,731.77,99.7996]
[1609580527995,6.01438,731.82,731.77,99.7996]
[1609580531599,1.98001402,731.91,731.77,99.7996]
[1609580531997,1.97992329,731.9,731.77,99.7996]
[1609580532199,6.01438,731.78,731.77,99.7996]
[1609580532600,6.01438,731.78,731.62,6.01438]
[1609580532803,6.01438,731.78,731.66,90.9472]
[1609580537706,1.97979406,731.9,731.66,90.9472]
[1609580538305,6.01438,731.72,731.66,90.9472]
[1609580541711,1.98081911,731.89,731.66,90.9472]
[1609580542412,6.01438,731.67,731.66,90.9472]
[1609580542812,6.01438,731.67,731.62,6.01438]
[1609580543013,6.01438,731.67,731.41,4.486]
[1609580543213,120.39728,731.67,731.41,4.486]
[1609580543416,120.39728,731.67,731.35,83.7696]
[1609580544416,6.01438,731.36,731.35,83.7696]
[1609580548320,114.3829,731.67,731.35,83.7696]
[1609580548823,6.01438,731.36,731.35,83.7696]
[1609580549623,114.3829,731.67,731.35,83.7696]
[1609580550826,6.01438,731.36,731.35,83.7696]
[1609580557937,116.3618145,731.67,731.35,83.7696]
[1609580558838,6.01438,731.47,731.35,83.7696]
[1609580564143,6.01438,731.47,731.3,15.0]
[1609580564544,6.01438,731.47,731.42,107.5581]
[1609580564743,6.01438,731.47,731.3,15.0]
[1609580564943,6.01438,731.47,731.42,81.4362]
[1609580565144,6.01438,731.47,731.37,6.01438]
[1609580565546,6.01438,731.47,731.43,79.7767]
[1609580565745,6.01438,731.47,731.46,85.1846]
[1609580566648,4.358,731.69,731.46,85.1846]
[1609580566848,1.98233028,731.73,731.46,85.1846]
[1609580567050,1.98445183,731.71,731.46,85.1846]
[1609580567247,6.01438,731.47,731.46,85.1846]
[1609580567647,4.653,731.65,731.46,85.1846]
[1609580569252,6.01438,731.47,731.46,85.1846]
[1609580573455,4.653,731.65,731.46,85.1846]
[1609580574055,1.98463554,731.72,731.46,85.1846]
[1609580575659,6.01438,731.5,731.46,85.1846]
[1609580580767,3.862,731.66,731.46,85.1846]
[1609580581066,1.98463554,731.72,731.46,85.1846]
[1609580581665,6.01438,731.48,731.47,6.01438]
[1609580583665,6.01438,731.48,731.37,6.01438]
[1609580583865,6.01438,731.48,731.32,91.263]
[1609580585667,6.01438,731.33,731.32,91.263]
[1609580590173,89.4208,731.63,731.32,91.263]
[1609580592075,6.01438,731.33,731.32,91.263]
[1609580596583,89.4208,731.63,731.32,91.263]
[1609580597188,6.01438,731.33,731.32,91.263]
[1609580604792,1.98056121,731.59,731.32,91.263]
[1609580605294,6.01438,731.33,731.32,91.263]
[1609580606595,1.98056121,731.59,731.32,91.263]
[1609580607297,6.01438,731.33,731.32,91.263]
[1609580607699,1.98056121,731.59,731.32,91.263]
[1609580609397,6.01438,731.33,731.32,91.263]
[1609580611805,1.98065962,731.59,731.32,91.263]
[1609580612005,89.4208,731.63,731.32,91.263]
[1609580612006,1.98038621,731.57,731.32,91.263]
[1609580613406,4.07358824,731.58,731.32,91.263]
[1609580613606,6.01438,731.33,731.32,91.263]
[1609580619215,1.98154149,731.58,731.32,91.263]
[1609580619919,6.01438,731.33,731.32,91.263]
[1609580624521,6.00794685,731.33,731.32,91.263]
[1609580625123,1.98347016,731.6,731.32,91.263]
[1609580625421,1.97938306,731.61,731.32,91.263]
[1609580626225,6.01438,731.33,731.32,91.263]
[1609580635536,1.97952211,731.61,731.32,91.263]
[1609580636336,1.97952211,731.61,731.32,106.263]
[1609580636537,6.01438,731.51,731.42,6.01438]
[1609580637339,6.01438,731.51,731.5,110.5471]
[1609580638540,6.01438,731.51,731.5,113.2574]